Workbook

Sheet Resumo do Orçamento
D1: Obra | E1: Bancos | F1: B.D.I. | I1: Encargos Sociais
D2: Reforma do prédio-sede da Associação dos Produtores de Polpa de Frutas do Povoado Nova Descoberta, Boquim-SE | E2: SINAPI - 06/2022 - Sergipe ORSE - 06/2022 - Sergipe | F2: 29,79% | I2: Desonerado: Horista: 82,52% Mensalista: 46,54%
A3: Planilha Orçamentária Resumida
A4: Item | D4: Descrição | J4: Total | K4: Peso (%)
A5: 1 | D5: CANTEIRO DE OBRA | J5: 11482.02 | K5: 0.09169452822
A6: 2 | D6: SERVIÇOS PRELIMINARES | J6: 3336.46 | K6: 0.02664471283
A7: 3 | D7: ALVENARIAS | J7: 14082.17 | K7: 0.112459126
A8: 4 | D8: COBERTURA | J8: 41463.91 | K8: 0.3311275948
A9: 5 | D9: ESQUADRIAS | J9: 4475.61 | K9: 0.03574187708
A10: 6 | D10: INSTALAÇÕES HIDRÁULICAS | J10: 847.43 | K10: 0.006767510773
A11: 7 | D11: REVESTIMENTOS | J11: 32230.26 | K11: 0.2573883764
A12: 8 | D12: INSTALAÇÕES ELÉTRICAS | J12: 5762.7 | K12: 0.04602047878
A13: 9 | D13: PINTURAS | J13: 11539.78 | K13: 0.09215579514
G15: Total sem BDI | I15: 96488.58
G16: Total do BDI | I16: 28731.76
G17: Total Geral | I17: 125220.34

Sheet Orçamento Sintético
D1: Obra | E1: Bancos | G1: B.D.I. | I1: Encargos Sociais
D2: Reforma do prédio-sede da Associação dos Produtores de Polpa de Frutas do Povoado Nova Descoberta, Boquim-SE | E2: SINAPI - 06/2022 - Sergipe ORSE - 06/2022 - Sergipe | G2: 29,79% | I2: Desonerado: Horista: 82,52% Mensalista: 46,54%
A3: Orçamento Sintético
A4: Item | B4: Código | C4: Banco | D4: Descrição | E4: Und | F4: Quant. | G4: Valor Unit | H4: Valor Unit com BDI | I4: Total | J4: Peso (%)
A5: 1 | D5: CANTEIRO DE OBRA | I5: 11482.02 | J5: 0.09169452822
A6: 1.1 | B6: CODEVASF 245 | C6: Próprio | D6: Mobilização/Desmobilização de Pessoal e Equipamentos (CDVSF) 1 | E6: und | F6: 1 | G6: 1031.64 | H6: 1338.96 | I6: 1338.96 | J6: 0.01069283153
A7: 1.2 | B7: CODEVASF 266 | C7: Próprio | D7: Administração Local | E7: und | F7: 1 | G7: 6100.38 | H7: 7917.68 | I7: 7917.68 | J7: 0.06322998324
A8: 1.3 | B8: 74209/001 | C8: SINAPI | D8: PLACA DE OBRA EM CHAPA DE ACO GALVANIZADO | E8: m² | F8: 4.5 | G8: 381.03 | H8: 494.53 | I8: 2225.38 | J8: 0.01777171345
A9: 2 | D9: SERVIÇOS PRELIMINARES | I9: 3336.46 | J9: 0.02664471283
A10: 2.1 | B10: 18 | C10: ORSE | D10: Demolição de piso cerâmico ou ladrilho | E10: m2 | F10: 150.88 | G10: 10.78 | H10: 13.99 | I10: 2110.81 | J10: 0.01685676624
A11: 2.2 | B11: 97631 | C11: SINAPI | D11: DEMOLIÇÃO DE ARGAMASSAS, DE FORMA MANUAL, SEM REAPROVEITAMENTO. AF_12/2017 | E11: m² | F11: 110.17 | G11: 2.38 | H11: 3.08 | I11: 339.32 | J11: 0.002709783411
A12: 2.3 | B12: 73859/002 | C12: SINAPI | D12: CAPINA E LIMPEZA MANUAL DE TERRENO | E12: m² | F12: 20.66 | G12: 1.26 | H12: 1.63 | I12: 33.67 | J12: 0.0002688860292
A13: 2.4 | B13: 26 | C13: ORSE | D13: Coleta e carga manuais de entulho | E13: m³ | F13: 10 | G13: 13.73 | H13: 17.82 | I13: 178.2 | J13: 0.001423091488
A14: 2.5 | B14: 13197 | C14: ORSE | D14: Locação de caixa coletora de entulho capacidade 5 m³ (Local: Aracaju), prazo máximo de 7 dias | E14: un | F14: 2 | G14: 259.83 | H14: 337.23 | I14: 674.46 | J14: 0.005386185663
A15: 3 | D15: ALVENARIAS | I15: 14082.17 | J15: 0.112459126
A16: 3.1 | B16: 3315 | C16: ORSE | D16: Reboco ou emboço interno, de teto, com argamassa traço t6 - 1:2:10 (cimento / cal / areia), espessura 1,5 cm | E16: m² | F16: 331.07 | G16: 27.86 | H16: 36.15 | I16: 11968.18 | J16: 0.09557696457
A17: 3.2 | B17: 151 | C17: ORSE | D17: Alvenaria bloco cerâmico vedação, 9x19x24cm, e=9cm, com argamassa t5 - 1:2:8 (cimento/cal/areia), junta=1cm - Rev.09 | E17: m² | F17: 42.95 | G17: 37.93 | H17: 49.22 | I17: 2113.99 | J17: 0.01688216148
A18: 4 | D18: COBERTURA | I18: 41463.91 | J18: 0.3311275948
A19: 4.1 | B19: 272 | C19: ORSE | D19: Revisão em cobertura com telha ceramica tipo colonial, cor clara, 1ª, Itabaianinha ou similar, com reposição de 20% do material - Rev 02 | E19: m2 | F19: 122.23 | G19: 61.62 | H19: 79.97 | I19: 9774.73 | J19: 0.07806024165
A20: 4.2 | B20: 9078 | C20: ORSE | D20: Calha em chapa de aluminio, desenvolvimento 80 cm | E20: m | F20: 17.87 | G20: 115.84 | H20: 150.34 | I20: 2686.57 | J20: 0.0214547413
A21: 4.3 | B21: 94201 | C21: SINAPI | D21: TELHAMENTO COM TELHA CERÂMICA CAPA-CANAL, TIPO COLONIAL, COM ATÉ 2 ÁGUAS, INCLUSO TRANSPORTE VERTICAL. AF_07/2019 | E21: m² | F21: 129.57 | G21: 35.53 | H21: 46.11 | I21: 5974.47 | J21: 0.04771165771
A22: 4.4 | B22: 92541 | C22: SINAPI | D22: TRAMA DE MADEIRA COMPOSTA POR RIPAS, CAIBROS E TERÇAS PARA TELHADOS DE ATÉ 2 ÁGUAS PARA TELHA CERÂMICA CAPA-CANAL, INCLUSO TRANSPORTE VERTICAL. AF_07/2019 | E22: m² | F22: 129.57 | G22: 68.2 | H22: 88.51 | I22: 11468.24 | J22: 0.0915844822
A23: 4.5 | B23: 92549 | C23: SINAPI | D23: FABRICAÇÃO E INSTALAÇÃO DE TESOURA INTEIRA EM MADEIRA NÃO APARELHADA, VÃO DE 7 M, PARA TELHA CERÂMICA OU DE CONCRETO, INCLUSO IÇAMENTO. AF_07/2019 | E23: UN | F23: 6 | G23: 1484.44 | H23: 1926.65 | I23: 11559.9 | J23: 0.09231647191
A24: 5 | D24: ESQUADRIAS | I24: 4475.61 | J24: 0.03574187708
A25: 5.1 | B25: 3547 | C25: ORSE | D25: Porta em madeira compensada (canela), lisa, semi-ôca, 0.80 x 2.10 m, inclusive batente e ferragens | E25: un | F25: 3 | G25: 654.47 | H25: 849.43 | I25: 2548.29 | J25: 0.02035044786
A26: 5.2 | B26: 12104 | C26: ORSE | D26: Porta de ferro de abrir, c/ gradil em barra chata 3/4" x 1/8", inclusive requadro, ferrolho e dobradiças e fechadura, conforme desenho | E26: m2 | F26: 3 | G26: 423.22 | H26: 549.29 | I26: 1647.87 | J26: 0.01315976302
A27: 5.3 | B27: 94570 | C27: SINAPI | D27: JANELA DE ALUMÍNIO DE CORRER COM 2 FOLHAS PARA VIDROS, COM VIDROS, BATENTE, ACABAMENTO COM ACETATO OU BRILHANTE E FERRAGENS. EXCLUSIVE ALIZAR E CONTRAMARCO. FORNECIMENTO E INSTALAÇÃO. AF_12/2019 | E27: m² | F27: 0.98 | G27: 219.71 | H27: 285.16 | I27: 279.45 | J27: 0.002231666197
A28: 6 | D28: INSTALAÇÕES HIDRÁULICAS | I28: 847.43 | J28: 0.006767510773
A29: 6.1 | B29: 1679 | C29: ORSE | D29: Ponto de esgoto com tubo de pvc rígido soldável de Ø 40 mm (lavatórios, mictórios, ralos sifonados, etc...) | E29: un | F29: 1 | G29: 74.19 | H29: 96.29 | I29: 96.29 | J29: 0.0007689645308
A30: 6.2 | B30: 89448 | C30: SINAPI | D30: TUBO, PVC, SOLDÁVEL, DN 40MM, INSTALADO EM PRUMADA DE ÁGUA - FORNECIMENTO E INSTALAÇÃO. AF_12/2014 | E30: M | F30: 7.5 | G30: 17.19 | H30: 22.31 | I30: 167.32 | J30: 0.001336204645
A31: 6.3 | B31: 86942 | C31: SINAPI | D31: LAVATÓRIO LOUÇA BRANCA SUSPENSO, 29,5 X 39CM OU EQUIVALENTE, PADRÃO POPULAR, INCLUSO SIFÃO TIPO GARRAFA EM PVC, VÁLVULA E ENGATE FLEXÍVEL 30CM EM PLÁSTICO E TORNEIRA CROMADA DE MESA, PADRÃO POPULAR - FORNECIMENTO E INSTALAÇÃO. AF_01/2020 | E31: UN | F31: 2 | G31: 224.91 | H31: 291.91 | I31: 583.82 | J31: 0.004662341597
A32: 7 | D32: REVESTIMENTOS | I32: 32230.26 | J32: 0.2573883764
A33: 7.1 | B33: 87692 | C33: SINAPI | D33: CONTRAPISO EM ARGAMASSA TRAÇO 1:4 (CIMENTO E AREIA), PREPARO MANUAL, APLICADO EM ÁREAS SECAS SOBRE LAJE, NÃO ADERIDO, ACABAMENTO NÃO REFORÇADO, ESPESSURA 5CM. AF_07/2021 | E33: m² | F33: 130.83 | G33: 47.06 | H33: 61.07 | I33: 7989.78 | J33: 0.0638057683
A34: 7.2 | B34: 11370 | C34: ORSE | D34: Revestimento cerâmico para piso ou parede, 45 x 45 cm, c/ piso porcelanato, elemento taupe, ELIANE ou similar, PEI 4, aplicado com argamassa industrializada ac-ii, rejuntado, exclusive regularização de base ou emboço | E34: m2 | F34: 66.62 | G34: 62.18 | H34: 80.7 | I34: 5376.23 | J34: 0.0429341591
A35: 7.3 | B35: 10175 | C35: ORSE | D35: Piso alta resistencia, branco, e=12mm, aplicado com juntas, polido até o esmeril 400 e encerado, exclusive argamassa de regualrização | E35: m2 | F35: 154.79 | G35: 93.9 | H35: 121.87 | I35: 18864.25 | J35: 0.150648449
A36: 8 | D36: INSTALAÇÕES ELÉTRICAS | I36: 5762.7 | J36: 0.04602047878
A37: 8.1 | B37: 93141 | C37: SINAPI | D37: PONTO DE TOMADA RESIDENCIAL INCLUINDO TOMADA 10A/250V, CAIXA ELÉTRICA, ELETRODUTO, CABO, RASGO, QUEBRA E CHUMBAMENTO. AF_01/2016 | E37: UN | F37: 10 | G37: 149.83 | H37: 194.46 | I37: 1944.6 | J37: 0.01552942597
A38: 8.2 | B38: 93128 | C38: SINAPI | D38: PONTO DE ILUMINAÇÃO RESIDENCIAL INCLUINDO INTERRUPTOR SIMPLES, CAIXA ELÉTRICA, ELETRODUTO, CABO, RASGO, QUEBRA E CHUMBAMENTO (EXCLUINDO LUMINÁRIA E LÂMPADA). AF_01/2016 | E38: UN | F38: 12 | G38: 119.74 | H38: 155.41 | I38: 1864.92 | J38: 0.01489310762
A39: 8.3 | B39: 101879 | C39: SINAPI | D39: QUADRO DE DISTRIBUIÇÃO DE ENERGIA EM CHAPA DE AÇO GALVANIZADO, DE EMBUTIR, COM BARRAMENTO TRIFÁSICO, PARA 24 DISJUNTORES DIN 100A - FORNECIMENTO E INSTALAÇÃO. AF_10/2020 | E39: UN | F39: 2 | G39: 752.44 | H39: 976.59 | I39: 1953.18 | J39: 0.01559794519
A40: 9 | D40: PINTURAS | I40: 11539.78 | J40: 0.09215579514
A41: 9.1 | B41: 2287 | C41: ORSE | D41: Pintura de acabamento com aplicação de 02 demãos de tinta PVA latex para exteriores - cores convencionais | E41: m2 | F41: 175.37 | G41: 12.3 | H41: 15.96 | I41: 2798.9 | J41: 0.02235180004
A42: 9.2 | B42: 2285 | C42: ORSE | D42: Pintura de acabamento com aplicação de 02 demãos de tinta PVA latex para interiores - cores convencionais - Rev 03 | E42: m² | F42: 450.49 | G42: 12.3 | H42: 15.96 | I42: 7189.82 | J42: 0.05741734929
A43: 9.3 | B43: 2308 | C43: ORSE | D43: Pintura de acabamento com lixamento e aplicação de 02 demãos de esmalte sintético sobre madeira - R1 | E43: m2 | F43: 73.06 | G43: 16.36 | H43: 21.23 | I43: 1551.06 | J43: 0.01238664581
F45: Total sem BDI | H45: 96488.58
F46: Total do BDI | H46: 28731.76
F47: Total Geral | H47: 125220.34

Sheet CPUs
C1: Composições Analíticas com Preço Unitário | E1: Bancos | G1: B.D.I. | I1: Encargos Sociais
C2: Reforma do prédio-sede da Associação dos Produtores de Polpa de Frutas do Povoado Nova Descoberta, Boquim-SE | E2: SINAPI - 06/2022 - Sergipe ORSE - 06/2022 - Sergipe | G2: 29,79% | I2: Desonerado: Horista: 82,52% Mensalista: 46,54%
A3: Composições Analíticas com Preço Unitário
A4: Composições Principais
A5: 1.1 | B5: Código | C5: Banco | D5: Descrição | E5: Tipo | G5: Und | H5: Quant. | I5: Valor Unit | J5: Total
A6: Composição | B6: CODEVASF 245 | C6: Próprio | D6: Mobilização/Desmobilização de Pessoal e Equipamentos (CDVSF) 1 | E6: CANT - CANTEIRO DE OBRAS | G6: und | H6: 1 | I6: 1031.64 | J6: 1031.64
A7: Insumo | B7: 2480 | C7: ORSE | D7: Pick-up, capacidade 1,2 t | E7: Equipamento | G7: h | H7: 4 | I7: 10.89 | J7: 43.56
A8: Insumo | B8: 2452 | C8: ORSE | D8: Caminhao toco, PBT = 9700kg, com carroceria de madeira 2,50x7,00x0,50m, potência 160 cv | E8: Equipamento | G8: h | H8: 4 | I8: 47.96 | J8: 191.84
A9: Insumo | B9: 00004222 | C9: SINAPI | D9: GASOLINA COMUM | E9: Material | G9: L | H9: 40.33 | I9: 7.28 | J9: 293.6
A10: Insumo | B10: 00004221 | C10: SINAPI | D10: OLEO DIESEL COMBUSTIVEL COMUM | E10: Material | G10: L | H10: 69.14 | I10: 7.27 | J10: 502.64
A14: 1.2 | B14: Código | C14: Banco | D14: Descrição | E14: Tipo | G14: Und | H14: Quant. | I14: Valor Unit | J14: Total
A15: Composição | B15: CODEVASF 266 | C15: Próprio | D15: Administração Local | E15: ASTU - ASSENTAMENTO DE TUBOS E PECAS | G15: und | H15: 1 | I15: 6100.38 | J15: 6100.38
A16: Composição Auxiliar | B16: 93572 | C16: SINAPI | D16: ENCARREGADO GERAL DE OBRAS COM ENCARGOS COMPLEMENTARES | E16: SEDI - SERVIÇOS DIVERSOS | G16: MES | H16: 1 | I16: 4618.54 | J16: 4618.54
A17: Composição Auxiliar | B17: 93565 | C17: SINAPI | D17: ENGENHEIRO CIVIL DE OBRA JUNIOR COM ENCARGOS COMPLEMENTARES | E17: SEDI - SERVIÇOS DIVERSOS | G17: MES | H17: 0.1 | I17: 14818.45 | J17: 1481.84
A21: 1.3 | B21: Código | C21: Banco | D21: Descrição | E21: Tipo | G21: Und | H21: Quant. | I21: Valor Unit | J21: Total
A22: Composição | B22: 74209/001 | C22: SINAPI | D22: PLACA DE OBRA EM CHAPA DE ACO GALVANIZADO | E22: CANT - CANTEIRO DE OBRAS | G22: m² | H22: 1 | I22: 381.03 | J22: 381.03
A23: Composição Auxiliar | B23: 94962 | C23: SINAPI | D23: CONCRETO MAGRO PARA LASTRO, TRAÇO 1:4,5:4,5 (EM MASSA SECA DE CIMENTO/ AREIA MÉDIA/ BRITA 1) - PREPARO MECÂNICO COM BETONEIRA 400 L. AF_05/2021 | E23: FUES - FUNDAÇÕES E ESTRUTURAS | G23: m³ | H23: 0.01 | I23: 353.83 | J23: 3.53
A24: Composição Auxiliar | B24: 88262 | C24: SINAPI | D24: CARPINTEIRO DE FORMAS COM ENCARGOS COMPLEMENTARES | E24: SEDI - SERVIÇOS DIVERSOS | G24: H | H24: 1 | I24: 19.13 | J24: 19.13
A25: Composição Auxiliar | B25: 88316 | C25: SINAPI | D25: SERVENTE COM ENCARGOS COMPLEMENTARES | E25: SEDI - SERVIÇOS DIVERSOS | G25: H | H25: 2 | I25: 15.78 | J25: 31.56
A26: Insumo | B26: 00004813 | C26: SINAPI | D26: PLACA DE OBRA (PARA CONSTRUCAO CIVIL) EM CHAPA GALVANIZADA *N. 22*, ADESIVADA, DE *2,4 X 1,2* M (SEM POSTES PARA FIXACAO) | E26: Material | G26: m² | H26: 1 | I26: 275 | J26: 275
A27: Insumo | B27: 00004491 | C27: SINAPI | D27: PONTALETE *7,5 X 7,5* CM EM PINUS, MISTA OU EQUIVALENTE DA REGIAO - BRUTA | E27: Material | G27: M | H27: 4 | I27: 10.85 | J27: 43.4
A28: Insumo | B28: 00005075 | C28: SINAPI | D28: PREGO DE ACO POLIDO COM CABECA 18 X 30 (2 3/4 X 10) | E28: Material | G28: KG | H28: 0.11 | I28: 20.86 | J28: 2.29
A29: Insumo | B29: 00004417 | C29: SINAPI | D29: SARRAFO NAO APARELHADO *2,5 X 7* CM, EM MACARANDUBA, ANGELIM OU EQUIVALENTE DA REGIAO - BRUTA | E29: Material | G29: M | H29: 1 | I29: 6.12 | J29: 6.12
A33: 2.1 | B33: Código | C33: Banco | D33: Descrição | E33: Tipo | G33: Und | H33: Quant. | I33: Valor Unit | J33: Total
A34: Composição | B34: 18 | C34: ORSE | D34: Demolição de piso cerâmico ou ladrilho | E34: Demolições / Remoções | G34: m2 | H34: 1 | I34: 10.78 | J34: 10.78
A35: Composição Auxiliar | B35: 10549 | C35: ORSE | D35: Encargos Complementares - Servente | E35: Provisórios | G35: h | H35: 0.7 | I35: 3.68 | J35: 2.57
A36: Composição Auxiliar | B36: 10550 | C36: ORSE | D36: Encargos Complementares - Pedreiro | E36: Provisórios | G36: h | H36: 0.07 | I36: 3.55 | J36: 0.24
A37: Insumo | B37: 00004750 | C37: SINAPI | D37: PEDREIRO (HORISTA) | E37: Mão de Obra | G37: H | H37: 0.07 | I37: 13.45 | J37: 0.94
A38: Insumo | B38: 00006111 | C38: SINAPI | D38: SERVENTE DE OBRAS | E38: Mão de Obra | G38: H | H38: 0.7 | I38: 10.05 | J38: 7.03
A42: 2.2 | B42: Código | C42: Banco | D42: Descrição | E42: Tipo | G42: Und | H42: Quant. | I42: Valor Unit | J42: Total
A43: Composição | B43: 97631 | C43: SINAPI | D43: DEMOLIÇÃO DE ARGAMASSAS, DE FORMA MANUAL, SEM REAPROVEITAMENTO. AF_12/2017 | E43: SERP - SERVIÇOS PRELIMINARES | G43: m² | H43: 1 | I43: 2.38 | J43: 2.38
A44: Composição Auxiliar | B44: 88309 | C44: SINAPI | D44: PEDREIRO COM ENCARGOS COMPLEMENTARES | E44: SEDI - SERVIÇOS DIVERSOS | G44: H | H44: 0.0374 | I44: 19.36 | J44: 0.72
A45: Composição Auxiliar | B45: 88316 | C45: SINAPI | D45: SERVENTE COM ENCARGOS COMPLEMENTARES | E45: SEDI - SERVIÇOS DIVERSOS | G45: H | H45: 0.1053 | I45: 15.78 | J45: 1.66
A49: 2.3 | B49: Código | C49: Banco | D49: Descrição | E49: Tipo | G49: Und | H49: Quant. | I49: Valor Unit | J49: Total
A50: Composição | B50: 73859/002 | C50: SINAPI | D50: CAPINA E LIMPEZA MANUAL DE TERRENO | E50: SERP - SERVIÇOS PRELIMINARES | G50: m² | H50: 1 | I50: 1.26 | J50: 1.26
A51: Composição Auxiliar | B51: 88316 | C51: SINAPI | D51: SERVENTE COM ENCARGOS COMPLEMENTARES | E51: SEDI - SERVIÇOS DIVERSOS | G51: H | H51: 0.08 | I51: 15.78 | J51: 1.26
A55: 2.4 | B55: Código | C55: Banco | D55: Descrição | E55: Tipo | G55: Und | H55: Quant. | I55: Valor Unit | J55: Total
A56: Composição | B56: 26 | C56: ORSE | D56: Coleta e carga manuais de entulho | E56: Demolições / Remoções | G56: m³ | H56: 1 | I56: 13.73 | J56: 13.73
A57: Composição Auxiliar | B57: 10549 | C57: ORSE | D57: Encargos Complementares - Servente | E57: Provisórios | G57: h | H57: 1 | I57: 3.68 | J57: 3.68
A58: Insumo | B58: 00006111 | C58: SINAPI | D58: SERVENTE DE OBRAS | E58: Mão de Obra | G58: H | H58: 1 | I58: 10.05 | J58: 10.05
A62: 2.5 | B62: Código | C62: Banco | D62: Descrição | E62: Tipo | G62: Und | H62: Quant. | I62: Valor Unit | J62: Total
A63: Composição | B63: 13197 | C63: ORSE | D63: Locação de caixa coletora de entulho capacidade 5 m³ (Local: Aracaju), prazo máximo de 7 dias | E63: Diversos | G63: un | H63: 1 | I63: 259.83 | J63: 259.83
A64: Insumo | B64: 7962 | C64: ORSE | D64: Locação de caixa coletora de entulho capacidade 5 m³ (Local: Aracaju) | E64: Serviços | G64: un | H64: 1 | I64: 259.83 | J64: 259.83
A68: 3.1 | B68: Código | C68: Banco | D68: Descrição | E68: Tipo | G68: Und | H68: Quant. | I68: Valor Unit | J68: Total
A69: Composição | B69: 3315 | C69: ORSE | D69: Reboco ou emboço interno, de teto, com argamassa traço t6 - 1:2:10 (cimento / cal / areia), espessura 1,5 cm | E69: Conversão InfoWOrca | G69: m² | H69: 1 | I69: 27.86 | J69: 27.86
A70: Composição Auxiliar | B70: 3309 | C70: ORSE | D70: Argamassa cimento, cal e areia traço t-6 (1:2:10) - 1 saco cimento de 50 kg / 2 sacos de cal de 20 kg / 10 padiolas de areia grossa dim 0.35 x 0.45 x 0.13 m - Confecção mecânica e transporte | E70: Conversão InfoWOrca | G70: m³ | H70: 0.015 | I70: 425.02 | J70: 6.37
A71: Composição Auxiliar | B71: 10549 | C71: ORSE | D71: Encargos Complementares - Servente | E71: Provisórios | G71: h | H71: 0.7 | I71: 3.68 | J71: 2.57
A72: Composição Auxiliar | B72: 10550 | C72: ORSE | D72: Encargos Complementares - Pedreiro | E72: Provisórios | G72: h | H72: 0.7 | I72: 3.55 | J72: 2.48
A73: Insumo | B73: 00004750 | C73: SINAPI | D73: PEDREIRO (HORISTA) | E73: Mão de Obra | G73: H | H73: 0.7 | I73: 13.45 | J73: 9.41
A74: Insumo | B74: 00006111 | C74: SINAPI | D74: SERVENTE DE OBRAS | E74: Mão de Obra | G74: H | H74: 0.7 | I74: 10.05 | J74: 7.03
A78: 3.2 | B78: Código | C78: Banco | D78: Descrição | E78: Tipo | G78: Und | H78: Quant. | I78: Valor Unit | J78: Total
A79: Composição | B79: 151 | C79: ORSE | D79: Alvenaria bloco cerâmico vedação, 9x19x24cm, e=9cm, com argamassa t5 - 1:2:8 (cimento/cal/areia), junta=1cm - Rev.09 | E79: Alvenarias de Vedação | G79: m² | H79: 1 | I79: 37.93 | J79: 37.93
A80: Composição Auxiliar | B80: 3308 | C80: ORSE | D80: Argamassa em volume - cimento, cal e areia traço t-5 (1:2:8) - 1 saco cimento 50 kg / 2 sacos cal 20 kg / 8 padiolas de areia dim 0.35 x 0.45 x 0.13 m - Confecção mecânica e transporte | E80: Conversão InfoWOrca | G80: m³ | H80: 0.0138 | I80: 483.16 | J80: 6.66
A81: Composição Auxiliar | B81: 10549 | C81: ORSE | D81: Encargos Complementares - Servente | E81: Provisórios | G81: h | H81: 0.38 | I81: 3.68 | J81: 1.39
A82: Composição Auxiliar | B82: 10550 | C82: ORSE | D82: Encargos Complementares - Pedreiro | E82: Provisórios | G82: h | H82: 0.64 | I82: 3.55 | J82: 2.27
A83: Insumo | B83: 2657 | C83: ORSE | D83: Bloco cerâmico, de vedação, 6 furos horizontais, dim. 9 x 19 x 24 cm | E83: Material | G83: un | H83: 20 | I83: 0.76 | J83: 15.2
A84: Insumo | B84: 00004750 | C84: SINAPI | D84: PEDREIRO (HORISTA) | E84: Mão de Obra | G84: H | H84: 0.64 | I84: 13.45 | J84: 8.6
A85: Insumo | B85: 00006111 | C85: SINAPI | D85: SERVENTE DE OBRAS | E85: Mão de Obra | G85: H | H85: 0.38 | I85: 10.05 | J85: 3.81
A89: 4.1 | B89: Código | C89: Banco | D89: Descrição | E89: Tipo | G89: Und | H89: Quant. | I89: Valor Unit | J89: Total
A90: Composição | B90: 272 | C90: ORSE | D90: Revisão em cobertura com telha ceramica tipo colonial, cor clara, 1ª, Itabaianinha ou similar, com reposição de 20% do material - Rev 02 | E90: Telhamento | G90: m2 | H90: 1 | I90: 61.62 | J90: 61.62
A91: Composição Auxiliar | B91: 9 | C91: ORSE | D91: Remoção de telhamento com telhas cerâmicas | E91: Demolições / Remoções | G91: m2 | H91: 1 | I91: 9.24 | J91: 9.24
A92: Composição Auxiliar | B92: 30 | C92: ORSE | D92: Demolição de madeiramento em coberturas com telhas cerâmicas | E92: Demolições / Remoções | G92: m2 | H92: 0.2 | I92: 20.04 | J92: 4
A93: Composição Auxiliar | B93: 196 | C93: ORSE | D93: Madeiramento em massaranduba/madeira de lei, acabamento serrado c/ ripão 5 x 3cm e ripa 4 x 1,5cm, exclusive peças principais | E93: Madeiramento | G93: m² | H93: 0.2 | I93: 100.14 | J93: 20.02
A94: Composição Auxiliar | B94: 10549 | C94: ORSE | D94: Encargos Complementares - Servente | E94: Provisórios | G94: h | H94: 1 | I94: 3.68 | J94: 3.68
A95: Composição Auxiliar | B95: 10551 | C95: ORSE | D95: Encargos Complementares - Carpinteiro | E95: Provisórios | G95: h | H95: 0.5 | I95: 3.59 | J95: 1.79
A96: Insumo | B96: 2187 | C96: ORSE | D96: Telha cerâmica tipo colonial, simples, não resinada, cor clara, 1ª qualid, comp=51cm, 26 un/m² (Itabaianinha ou similar) | E96: Material | G96: un | H96: 6.8 | I96: 0.9 | J96: 6.12
A97: Insumo | B97: 00001213 | C97: SINAPI | D97: CARPINTEIRO DE FORMAS (HORISTA) | E97: Mão de Obra | G97: H | H97: 0.5 | I97: 13.45 | J97: 6.72
A98: Insumo | B98: 00006111 | C98: SINAPI | D98: SERVENTE DE OBRAS | E98: Mão de Obra | G98: H | H98: 1 | I98: 10.05 | J98: 10.05
A102: 4.2 | B102: Código | C102: Banco | D102: Descrição | E102: Tipo | G102: Und | H102: Quant. | I102: Valor Unit | J102: Total
A103: Composição | B103: 9078 | C103: ORSE | D103: Calha em chapa de aluminio, desenvolvimento 80 cm | E103: Complementos | G103: m | H103: 1 | I103: 115.84 | J103: 115.84
A104: Composição Auxiliar | B104: 10549 | C104: ORSE | D104: Encargos Complementares - Servente | E104: Provisórios | G104: h | H104: 1.25 | I104: 3.68 | J104: 4.6
A105: Composição Auxiliar | B105: 10551 | C105: ORSE | D105: Encargos Complementares - Carpinteiro | E105: Provisórios | G105: h | H105: 1.25 | I105: 3.59 | J105: 4.48
A106: Insumo | B106: 9364 | C106: ORSE | D106: Calha em chapa de aluminio, desenvolvimento 80cm | E106: Material | G106: m | H106: 1 | I106: 77.39 | J106: 77.39
A107: Insumo | B107: 00001213 | C107: SINAPI | D107: CARPINTEIRO DE FORMAS (HORISTA) | E107: Mão de Obra | G107: H | H107: 1.25 | I107: 13.45 | J107: 16.81
A108: Insumo | B108: 00006111 | C108: SINAPI | D108: SERVENTE DE OBRAS | E108: Mão de Obra | G108: H | H108: 1.25 | I108: 10.05 | J108: 12.56
A112: 4.3 | B112: Código | C112: Banco | D112: Descrição | E112: Tipo | G112: Und | H112: Quant. | I112: Valor Unit | J112: Total
A113: Composição | B113: 94201 | C113: SINAPI | D113: TELHAMENTO COM TELHA CERÂMICA CAPA-CANAL, TIPO COLONIAL, COM ATÉ 2 ÁGUAS, INCLUSO TRANSPORTE VERTICAL. AF_07/2019 | E113: COBE - COBERTURA | G113: m² | H113: 1 | I113: 35.53 | J113: 35.53
A114: Composição Auxiliar | B114: 93282 | C114: SINAPI | D114: GUINCHO ELÉTRICO DE COLUNA, CAPACIDADE 400 KG, COM MOTO FREIO, MOTOR TRIFÁSICO DE 1,25 CV - CHI DIURNO. AF_03/2016 | E114: CHOR - CUSTOS HORÁRIOS DE MÁQUINAS E EQUIPAMENTOS | G114: CHI | H114: 0.0516 | I114: 18.86 | J114: 0.97
A115: Composição Auxiliar | B115: 93281 | C115: SINAPI | D115: GUINCHO ELÉTRICO DE COLUNA, CAPACIDADE 400 KG, COM MOTO FREIO, MOTOR TRIFÁSICO DE 1,25 CV - CHP DIURNO. AF_03/2016 | E115: CHOR - CUSTOS HORÁRIOS DE MÁQUINAS E EQUIPAMENTOS | G115: CHP | H115: 0.0372 | I115: 19.88 | J115: 0.73
A116: Composição Auxiliar | B116: 88316 | C116: SINAPI | D116: SERVENTE COM ENCARGOS COMPLEMENTARES | E116: SEDI - SERVIÇOS DIVERSOS | G116: H | H116: 0.399 | I116: 15.78 | J116: 6.29
A117: Composição Auxiliar | B117: 88323 | C117: SINAPI | D117: TELHADISTA COM ENCARGOS COMPLEMENTARES | E117: SEDI - SERVIÇOS DIVERSOS | G117: H | H117: 0.133 | I117: 18.96 | J117: 2.52
A118: Insumo | B118: 00007173 | C118: SINAPI | D118: TELHA DE BARRO / CERAMICA, NAO ESMALTADA, TIPO COLONIAL, CANAL, PLAN, PAULISTA, COMPRIMENTO DE *44 A 50* CM, RENDIMENTO DE COBERTURA DE *26* TELHAS/M2 | E118: Material | G118: MIL | H118: 0.0275 | I118: 910 | J118: 25.02
A122: 4.4 | B122: Código | C122: Banco | D122: Descrição | E122: Tipo | G122: Und | H122: Quant. | I122: Valor Unit | J122: Total
A123: Composição | B123: 92541 | C123: SINAPI | D123: TRAMA DE MADEIRA COMPOSTA POR RIPAS, CAIBROS E TERÇAS PARA TELHADOS DE ATÉ 2 ÁGUAS PARA TELHA CERÂMICA CAPA-CANAL, INCLUSO TRANSPORTE VERTICAL. AF_07/2019 | E123: COBE - COBERTURA | G123: m² | H123: 1 | I123: 68.2 | J123: 68.2
A124: Composição Auxiliar | B124: 93282 | C124: SINAPI | D124: GUINCHO ELÉTRICO DE COLUNA, CAPACIDADE 400 KG, COM MOTO FREIO, MOTOR TRIFÁSICO DE 1,25 CV - CHI DIURNO. AF_03/2016 | E124: CHOR - CUSTOS HORÁRIOS DE MÁQUINAS E EQUIPAMENTOS | G124: CHI | H124: 0.0571 | I124: 18.86 | J124: 1.07
A125: Composição Auxiliar | B125: 93281 | C125: SINAPI | D125: GUINCHO ELÉTRICO DE COLUNA, CAPACIDADE 400 KG, COM MOTO FREIO, MOTOR TRIFÁSICO DE 1,25 CV - CHP DIURNO. AF_03/2016 | E125: CHOR - CUSTOS HORÁRIOS DE MÁQUINAS E EQUIPAMENTOS | G125: CHP | H125: 0.0412 | I125: 19.88 | J125: 0.81
A126: Composição Auxiliar | B126: 88239 | C126: SINAPI | D126: AJUDANTE DE CARPINTEIRO COM ENCARGOS COMPLEMENTARES | E126: SEDI - SERVIÇOS DIVERSOS | G126: H | H126: 0.402 | I126: 15.25 | J126: 6.13
A127: Composição Auxiliar | B127: 88262 | C127: SINAPI | D127: CARPINTEIRO DE FORMAS COM ENCARGOS COMPLEMENTARES | E127: SEDI - SERVIÇOS DIVERSOS | G127: H | H127: 0.4 | I127: 19.13 | J127: 7.65
A128: Insumo | B128: 00004430 | C128: SINAPI | D128: CAIBRO NAO APARELHADO *5 X 6* CM, EM MACARANDUBA, ANGELIM OU EQUIVALENTE DA REGIAO - BRUTA | E128: Material | G128: M | H128: 2.336 | I128: 11.25 | J128: 26.28
A129: Insumo | B129: 00020247 | C129: SINAPI | D129: PREGO DE ACO POLIDO COM CABECA 15 X 15 (1 1/4 X 13) | E129: Material | G129: KG | H129: 0.07 | I129: 23.1 | J129: 1.61
A130: Insumo | B130: 00040568 | C130: SINAPI | D130: PREGO DE ACO POLIDO COM CABECA 22 X 48 (4 1/4 X 5) | E130: Material | G130: KG | H130: 0.03 | I130: 21.02 | J130: 0.63
A131: Insumo | B131: 00039027 | C131: SINAPI | D131: PREGO DE ACO POLIDO COM CABECA 19 X 36 (3 1/4 X 9) | E131: Material | G131: KG | H131: 0.05 | I131: 20.84 | J131: 1.04
A132: Insumo | B132: 00004408 | C132: SINAPI | D132: RIPA NAO APARELHADA, *1,5 X 5* CM, EM MACARANDUBA, ANGELIM OU EQUIVALENTE DA REGIAO - BRUTA | E132: Material | G132: M | H132: 2.573 | I132: 2.14 | J132: 5.5
A133: Insumo | B133: 00004425 | C133: SINAPI | D133: VIGA NAO APARELHADA *6 X 12* CM, EM MACARANDUBA, ANGELIM OU EQUIVALENTE DA REGIAO - BRUTA | E133: Material | G133: M | H133: 0.735 | I133: 23.79 | J133: 17.48
A137: 4.5 | B137: Código | C137: Banco | D137: Descrição | E137: Tipo | G137: Und | H137: Quant. | I137: Valor Unit | J137: Total
A138: Composição | B138: 92549 | C138: SINAPI | D138: FABRICAÇÃO E INSTALAÇÃO DE TESOURA INTEIRA EM MADEIRA NÃO APARELHADA, VÃO DE 7 M, PARA TELHA CERÂMICA OU DE CONCRETO, INCLUSO IÇAMENTO. AF_07/2019 | E138: COBE - COBERTURA | G138: UN | H138: 1 | I138: 1484.44 | J138: 1484.44
A139: Composição Auxiliar | B139: 92260 | C139: SINAPI | D139: INSTALAÇÃO DE TESOURA (INTEIRA OU MEIA), BIAPOIADA, EM MADEIRA NÃO APARELHADA, PARA VÃOS MAIORES OU IGUAIS A 6,0 M E MENORES QUE 8,0 M, INCLUSO IÇAMENTO. AF_07/2019 | E139: COBE - COBERTURA | G139: UN | H139: 1 | I139: 431.72 | J139: 431.72
A140: Composição Auxiliar | B140: 88262 | C140: SINAPI | D140: CARPINTEIRO DE FORMAS COM ENCARGOS COMPLEMENTARES | E140: SEDI - SERVIÇOS DIVERSOS | G140: H | H140: 18.735 | I140: 19.13 | J140: 358.4
A141: Composição Auxiliar | B141: 88239 | C141: SINAPI | D141: AJUDANTE DE CARPINTEIRO COM ENCARGOS COMPLEMENTARES | E141: SEDI - SERVIÇOS DIVERSOS | G141: H | H141: 4.323 | I141: 15.25 | J141: 65.92
A142: Insumo | B142: 00004400 | C142: SINAPI | D142: CAIBRO NAO APARELHADO, *6 X 8* CM, EM MACARANDUBA, ANGELIM OU EQUIVALENTE DA REGIAO - BRUTA | E142: Material | G142: M | H142: 6 | I142: 17.9 | J142: 107.4
A143: Insumo | B143: 00021142 | C143: SINAPI | D143: ESTRIBO COM PARAFUSO EM CHAPA DE FERRO FUNDIDO DE 2" X 3/16" X 35 CM, SECAO "U", PARA MADEIRAMENTO DE TELHADO | E143: Material | G143: UN | H143: 1 | I143: 37.71 | J143: 37.71
A144: Insumo | B144: 00039027 | C144: SINAPI | D144: PREGO DE ACO POLIDO COM CABECA 19 X 36 (3 1/4 X 9) | E144: Material | G144: KG | H144: 1.925 | I144: 20.84 | J144: 40.11
A145: Insumo | B145: 00004415 | C145: SINAPI | D145: SARRAFO NAO APARELHADO 2,5 X 5 CM, EM MACARANDUBA, ANGELIM OU EQUIVALENTE DA REGIAO - BRUTA | E145: Material | G145: M | H145: 3.5 | I145: 4.25 | J145: 14.87
A146: Insumo | B146: 00006193 | C146: SINAPI | D146: TABUA NAO APARELHADA *2,5 X 20* CM, EM MACARANDUBA, ANGELIM OU EQUIVALENTE DA REGIAO - BRUTA | E146: Material | G146: M | H146: 3 | I146: 15.89 | J146: 47.67
A147: Insumo | B147: 00004425 | C147: SINAPI | D147: VIGA NAO APARELHADA *6 X 12* CM, EM MACARANDUBA, ANGELIM OU EQUIVALENTE DA REGIAO - BRUTA | E147: Material | G147: M | H147: 16 | I147: 23.79 | J147: 380.64
A151: 5.1 | B151: Código | C151: Banco | D151: Descrição | E151: Tipo | G151: Und | H151: Quant. | I151: Valor Unit | J151: Total
A152: Composição | B152: 3547 | C152: ORSE | D152: Porta em madeira compensada (canela), lisa, semi-ôca, 0.80 x 2.10 m, inclusive batente e ferragens | E152: Conversão InfoWOrca | G152: un | H152: 1 | I152: 654.47 | J152: 654.47
A153: Composição Auxiliar | B153: 1903 | C153: ORSE | D153: Argamassa cimento e areia traço t-1 (1:3) - 1 saco cimento 50kg / 3 padiolas areia dim. 0.35 x 0.45 x 0.23 m - Confecção mecânica e transporte | E153: Argamassas | G153: m³ | H153: 0.01 | I153: 501.19 | J153: 5.01
A154: Composição Auxiliar | B154: 10549 | C154: ORSE | D154: Encargos Complementares - Servente | E154: Provisórios | G154: h | H154: 3.75 | I154: 3.68 | J154: 13.8
A155: Composição Auxiliar | B155: 10551 | C155: ORSE | D155: Encargos Complementares - Carpinteiro | E155: Provisórios | G155: h | H155: 3.75 | I155: 3.59 | J155: 13.46
A156: Insumo | B156: 848 | C156: ORSE | D156: Dobradiça ferro galvanizado 3" x 3" sem aneis | E156: Material | G156: un | H156: 3 | I156: 3.6 | J156: 10.8
A157: Insumo | B157: 1807 | C157: ORSE | D157: Porta em madeira compensada canela, lisa, semi-oca - 80 x (160 a 210) x 3,5cm | E157: Material | G157: un | H157: 1 | I157: 206.46 | J157: 206.46
A158: Insumo | B158: 5015 | C158: ORSE | D158: Batente (caixão) em madeira lei L=14cm (90x220cm), completo c/02 jogos alizar | E158: Material | G158: cj | H158: 1 | I158: 260 | J158: 260
A159: Insumo | B159: 00001213 | C159: SINAPI | D159: CARPINTEIRO DE FORMAS (HORISTA) | E159: Mão de Obra | G159: H | H159: 3.75 | I159: 13.45 | J159: 50.43
A160: Insumo | B160: 00003080 | C160: SINAPI | D160: FECHADURA ESPELHO PARA PORTA EXTERNA, EM ACO INOX (MAQUINA, TESTA E CONTRA-TESTA) E EM ZAMAC (MACANETA, LINGUETA E TRINCOS) COM ACABAMENTO CROMADO, MAQUINA DE 40 MM, INCLUINDO CHAVE TIPO CILINDRO | E160: Material | G160: CJ | H160: 1 | I160: 56.75 | J160: 56.75
A161: Insumo | B161: 00005075 | C161: SINAPI | D161: PREGO DE ACO POLIDO COM CABECA 18 X 30 (2 3/4 X 10) | E161: Material | G161: KG | H161: 0.004 | I161: 20.86 | J161: 0.08
A162: Insumo | B162: 00006111 | C162: SINAPI | D162: SERVENTE DE OBRAS | E162: Mão de Obra | G162: H | H162: 3.75 | I162: 10.05 | J162: 37.68
A166: 5.2 | B166: Código | C166: Banco | D166: Descrição | E166: Tipo | G166: Und | H166: Quant. | I166: Valor Unit | J166: Total
A167: Composição | B167: 12104 | C167: ORSE | D167: Porta de ferro de abrir, c/ gradil em barra chata 3/4" x 1/8", inclusive requadro, ferrolho e dobradiças e fechadura, conforme desenho | E167: 343 | G167: m2 | H167: 1 | I167: 423.22 | J167: 423.22
A168: Composição Auxiliar | B168: 88315 | C168: SINAPI | D168: SERRALHEIRO COM ENCARGOS COMPLEMENTARES | E168: SEDI - SERVIÇOS DIVERSOS | G168: H | H168: 1.6 | I168: 19.25 | J168: 30.8
A169: Composição Auxiliar | B169: 88316 | C169: SINAPI | D169: SERVENTE COM ENCARGOS COMPLEMENTARES | E169: SEDI - SERVIÇOS DIVERSOS | G169: H | H169: 1.8 | I169: 15.78 | J169: 28.4
A170: Composição Auxiliar | B170: 88627 | C170: SINAPI | D170: ARGAMASSA TRAÇO 1:0,5:4,5 (EM VOLUME DE CIMENTO, CAL E AREIA MÉDIA ÚMIDA) PARA ASSENTAMENTO DE ALVENARIA, PREPARO MANUAL. AF_08/2019 | E170: SEDI - SERVIÇOS DIVERSOS | G170: m³ | H170: 0.006 | I170: 575.69 | J170: 3.45
A171: Composição Auxiliar | B171: 90830 | C171: SINAPI | D171: FECHADURA DE EMBUTIR COM CILINDRO, EXTERNA, COMPLETA, ACABAMENTO PADRÃO MÉDIO, INCLUSO EXECUÇÃO DE FURO - FORNECIMENTO E INSTALAÇÃO. AF_12/2019 | E171: ESQV - ESQUADRIAS/FERRAGENS/VIDROS | G171: UN | H171: 0.6 | I171: 138.73 | J171: 83.23
A172: Insumo | B172: 12939 | C172: ORSE | D172: Porta de ferro de abrir, c/ gradil em barra chata 3/4" x 1/8", inclusive requadro, ferrolho e dobradiças conforme desenho | E172: Material | G172: m2 | H172: 1 | I172: 277.34 | J172: 277.34
A176: 5.3 | B176: Código | C176: Banco | D176: Descrição | E176: Tipo | G176: Und | H176: Quant. | I176: Valor Unit | J176: Total
A177: Composição | B177: 94570 | C177: SINAPI | D177: JANELA DE ALUMÍNIO DE CORRER COM 2 FOLHAS PARA VIDROS, COM VIDROS, BATENTE, ACABAMENTO COM ACETATO OU BRILHANTE E FERRAGENS. EXCLUSIVE ALIZAR E CONTRAMARCO. FORNECIMENTO E INSTALAÇÃO. AF_12/2019 | E177: ESQV - ESQUADRIAS/FERRAGENS/VIDROS | G177: m² | H177: 1 | I177: 219.71 | J177: 219.71
A178: Composição Auxiliar | B178: 88309 | C178: SINAPI | D178: PEDREIRO COM ENCARGOS COMPLEMENTARES | E178: SEDI - SERVIÇOS DIVERSOS | G178: H | H178: 0.519 | I178: 19.36 | J178: 10.04
A179: Composição Auxiliar | B179: 88316 | C179: SINAPI | D179: SERVENTE COM ENCARGOS COMPLEMENTARES | E179: SEDI - SERVIÇOS DIVERSOS | G179: H | H179: 0.259 | I179: 15.78 | J179: 4.08
A180: Insumo | B180: 00036896 | C180: SINAPI | D180: JANELA DE CORRER, EM ALUMINIO PERFIL 25, 100 X 120 CM (A X L), 2 FLS MOVEIS, SEM BANDEIRA, ACABAMENTO BRANCO OU BRILHANTE, BATENTE DE 6 A 7 CM, COM VIDRO, SEM GUARNICAO | E180: Material | G180: UN | H180: 0.8333 | I180: 225.9 | J180: 188.24
A181: Insumo | B181: 00004377 | C181: SINAPI | D181: PARAFUSO DE ACO ZINCADO COM ROSCA SOBERBA, CABECA CHATA E FENDA SIMPLES, DIAMETRO 4,2 MM, COMPRIMENTO * 32 * MM | E181: Material | G181: UN | H181: 9.2 | I181: 0.18 | J181: 1.65
A182: Insumo | B182: 00039961 | C182: SINAPI | D182: SILICONE ACETICO USO GERAL INCOLOR 280 G | E182: Material | G182: UN | H182: 0.6233 | I182: 25.19 | J182: 15.7
A186: 6.1 | B186: Código | C186: Banco | D186: Descrição | E186: Tipo | G186: Und | H186: Quant. | I186: Valor Unit | J186: Total
A187: Composição | B187: 1679 | C187: ORSE | D187: Ponto de esgoto com tubo de pvc rígido soldável de Ø 40 mm (lavatórios, mictórios, ralos sifonados, etc...) | E187: Tubos e Conexões de PVC Rígido Soldável para Esgoto | G187: un | H187: 1 | I187: 74.19 | J187: 74.19
A188: Composição Auxiliar | B188: 10549 | C188: ORSE | D188: Encargos Complementares - Servente | E188: Provisórios | G188: h | H188: 0.65 | I188: 3.68 | J188: 2.39
A189: Composição Auxiliar | B189: 10554 | C189: ORSE | D189: Encargos Complementares - Encanador | E189: Provisórios | G189: h | H189: 0.65 | I189: 3.6 | J189: 2.34
A190: Insumo | B190: 138 | C190: ORSE | D190: Adesivo pvc em frasco de 850 gramas | E190: Material | G190: kg | H190: 0.039 | I190: 81.38 | J190: 3.17
A191: Insumo | B191: 1703 | C191: ORSE | D191: Pasta lubrificante p/ pvc je | E191: Material | G191: kg | H191: 0.09 | I191: 71.38 | J191: 6.42
A192: Insumo | B192: 2036 | C192: ORSE | D192: Solucao limpadora pvc | E192: Material | G192: l | H192: 0.06 | I192: 78.37 | J192: 4.7
A193: Insumo | B193: 00002696 | C193: SINAPI | D193: ENCANADOR OU BOMBEIRO HIDRAULICO (HORISTA) | E193: Mão de Obra | G193: H | H193: 0.65 | I193: 13.45 | J193: 8.74
A194: Insumo | B194: 00003516 | C194: SINAPI | D194: JOELHO PVC, SOLDAVEL, BB, 45 GRAUS, DN 40 MM, PARA ESGOTO PREDIAL | E194: Material | G194: UN | H194: 3 | I194: 1.18 | J194: 3.54
A195: Insumo | B195: 00003517 | C195: SINAPI | D195: JOELHO PVC, SOLDAVEL, BB, 90 GRAUS, DN 40 MM, PARA ESGOTO PREDIAL | E195: Material | G195: UN | H195: 3 | I195: 4.13 | J195: 12.39
A196: Insumo | B196: 00003767 | C196: SINAPI | D196: LIXA EM FOLHA PARA PAREDE OU MADEIRA, NUMERO 120, COR VERMELHA | E196: Material | G196: UN | H196: 0.2 | I196: 0.85 | J196: 0.17
A197: Insumo | B197: 00006111 | C197: SINAPI | D197: SERVENTE DE OBRAS | E197: Mão de Obra | G197: H | H197: 0.65 | I197: 10.05 | J197: 6.53
A198: Insumo | B198: 00009835 | C198: SINAPI | D198: TUBO PVC SERIE NORMAL, DN 40 MM, PARA ESGOTO PREDIAL (NBR 5688) | E198: Material | G198: M | H198: 4 | I198: 5.95 | J198: 23.8
A202: 6.2 | B202: Código | C202: Banco | D202: Descrição | E202: Tipo | G202: Und | H202: Quant. | I202: Valor Unit | J202: Total
A203: Composição | B203: 89448 | C203: SINAPI | D203: TUBO, PVC, SOLDÁVEL, DN 40MM, INSTALADO EM PRUMADA DE ÁGUA - FORNECIMENTO E INSTALAÇÃO. AF_12/2014 | E203: INHI - INSTALAÇÕES HIDROS SANITÁRIAS | G203: M | H203: 1 | I203: 17.19 | J203: 17.19
A204: Composição Auxiliar | B204: 88248 | C204: SINAPI | D204: AUXILIAR DE ENCANADOR OU BOMBEIRO HIDRÁULICO COM ENCARGOS COMPLEMENTARES | E204: SEDI - SERVIÇOS DIVERSOS | G204: H | H204: 0.0282 | I204: 14.82 | J204: 0.41
A205: Composição Auxiliar | B205: 88267 | C205: SINAPI | D205: ENCANADOR OU BOMBEIRO HIDRÁULICO COM ENCARGOS COMPLEMENTARES | E205: SEDI - SERVIÇOS DIVERSOS | G205: H | H205: 0.0282 | I205: 18.75 | J205: 0.52
A206: Insumo | B206: 00038383 | C206: SINAPI | D206: LIXA D'AGUA EM FOLHA, GRAO 100 | E206: Material | G206: UN | H206: 0.0066 | I206: 1.86 | J206: 0.01
A207: Insumo | B207: 00009874 | C207: SINAPI | D207: TUBO PVC, SOLDAVEL, DN 40 MM, AGUA FRIA (NBR-5648) | E207: Material | G207: M | H207: 1.0493 | I207: 15.49 | J207: 16.25
A211: 6.3 | B211: Código | C211: Banco | D211: Descrição | E211: Tipo | G211: Und | H211: Quant. | I211: Valor Unit | J211: Total
A212: Composição | B212: 86942 | C212: SINAPI | D212: LAVATÓRIO LOUÇA BRANCA SUSPENSO, 29,5 X 39CM OU EQUIVALENTE, PADRÃO POPULAR, INCLUSO SIFÃO TIPO GARRAFA EM PVC, VÁLVULA E ENGATE FLEXÍVEL 30CM EM PLÁSTICO E TORNEIRA CROMADA DE MESA, PADRÃO POPULAR - FORNECIMENTO E INSTALAÇÃO. AF_01/2020 | E212: INHI - INSTALAÇÕES HIDROS SANITÁRIAS | G212: UN | H212: 1 | I212: 224.91 | J212: 224.91
A213: Composição Auxiliar | B213: 86906 | C213: SINAPI | D213: TORNEIRA CROMADA DE MESA, 1/2 OU 3/4, PARA LAVATÓRIO, PADRÃO POPULAR - FORNECIMENTO E INSTALAÇÃO. AF_01/2020 | E213: INHI - INSTALAÇÕES HIDROS SANITÁRIAS | G213: UN | H213: 1 | I213: 62.33 | J213: 62.33
A214: Composição Auxiliar | B214: 86884 | C214: SINAPI | D214: ENGATE FLEXÍVEL EM PLÁSTICO BRANCO, 1/2 X 30CM - FORNECIMENTO E INSTALAÇÃO. AF_01/2020 | E214: INHI - INSTALAÇÕES HIDROS SANITÁRIAS | G214: UN | H214: 1 | I214: 7.26 | J214: 7.26
A215: Composição Auxiliar | B215: 86882 | C215: SINAPI | D215: SIFÃO DO TIPO GARRAFA/COPO EM PVC 1.1/4 X 1.1/2 - FORNECIMENTO E INSTALAÇÃO. AF_01/2020 | E215: INHI - INSTALAÇÕES HIDROS SANITÁRIAS | G215: UN | H215: 1 | I215: 17.69 | J215: 17.69
A216: Composição Auxiliar | B216: 86904 | C216: SINAPI | D216: LAVATÓRIO LOUÇA BRANCA SUSPENSO, 29,5 X 39CM OU EQUIVALENTE, PADRÃO POPULAR - FORNECIMENTO E INSTALAÇÃO. AF_01/2020 | E216: INHI - INSTALAÇÕES HIDROS SANITÁRIAS | G216: UN | H216: 1 | I216: 131.73 | J216: 131.73
A217: Composição Auxiliar | B217: 86879 | C217: SINAPI | D217: VÁLVULA EM PLÁSTICO 1 PARA PIA, TANQUE OU LAVATÓRIO, COM OU SEM LADRÃO - FORNECIMENTO E INSTALAÇÃO. AF_01/2020 | E217: INHI - INSTALAÇÕES HIDROS SANITÁRIAS | G217: UN | H217: 1 | I217: 5.9 | J217: 5.9
A221: 7.1 | B221: Código | C221: Banco | D221: Descrição | E221: Tipo | G221: Und | H221: Quant. | I221: Valor Unit | J221: Total
A222: Composição | B222: 87692 | C222: SINAPI | D222: CONTRAPISO EM ARGAMASSA TRAÇO 1:4 (CIMENTO E AREIA), PREPARO MANUAL, APLICADO EM ÁREAS SECAS SOBRE LAJE, NÃO ADERIDO, ACABAMENTO NÃO REFORÇADO, ESPESSURA 5CM. AF_07/2021 | E222: PISO - PISOS | G222: m² | H222: 1 | I222: 47.06 | J222: 47.06
A223: Composição Auxiliar | B223: 87373 | C223: SINAPI | D223: ARGAMASSA TRAÇO 1:4 (EM VOLUME DE CIMENTO E AREIA MÉDIA ÚMIDA) PARA CONTRAPISO, PREPARO MANUAL. AF_08/2019 | E223: SEDI - SERVIÇOS DIVERSOS | G223: m³ | H223: 0.0607 | I223: 647.62 | J223: 39.31
A224: Composição Auxiliar | B224: 88309 | C224: SINAPI | D224: PEDREIRO COM ENCARGOS COMPLEMENTARES | E224: SEDI - SERVIÇOS DIVERSOS | G224: H | H224: 0.285 | I224: 19.36 | J224: 5.51
A225: Composição Auxiliar | B225: 88316 | C225: SINAPI | D225: SERVENTE COM ENCARGOS COMPLEMENTARES | E225: SEDI - SERVIÇOS DIVERSOS | G225: H | H225: 0.142 | I225: 15.78 | J225: 2.24
A229: 7.2 | B229: Código | C229: Banco | D229: Descrição | E229: Tipo | G229: Und | H229: Quant. | I229: Valor Unit | J229: Total
A230: Composição | B230: 11370 | C230: ORSE | D230: Revestimento cerâmico para piso ou parede, 45 x 45 cm, c/ piso porcelanato, elemento taupe, ELIANE ou similar, PEI 4, aplicado com argamassa industrializada ac-ii, rejuntado, exclusive regularização de base ou emboço | E230: Azulejos e Cerâmicas | G230: m2 | H230: 1 | I230: 62.18 | J230: 62.18
A231: Composição Auxiliar | B231: 3407 | C231: ORSE | D231: Argamassa industrializada AC-II, Votomassa ou similar | E231: Argamassas | G231: kg | H231: 4 | I231: 1.25 | J231: 5
A232: Composição Auxiliar | B232: 10549 | C232: ORSE | D232: Encargos Complementares - Servente | E232: Provisórios | G232: h | H232: 0.45 | I232: 3.68 | J232: 1.65
A233: Composição Auxiliar | B233: 10550 | C233: ORSE | D233: Encargos Complementares - Pedreiro | E233: Provisórios | G233: h | H233: 0.55 | I233: 3.55 | J233: 1.95
A234: Insumo | B234: 2540 | C234: ORSE | D234: Rejunte colorido flexivel para revestimentos cerâmicos | E234: Material | G234: kg | H234: 0.38 | I234: 3.5 | J234: 1.33
A235: Insumo | B235: 12226 | C235: ORSE | D235: Cerâmica 45 x 45cm, piso porcelanato, elemento taupe AC, PEI 4, marca ELIANE OU SIMILAR | E235: Material | G235: m2 | H235: 1.05 | I235: 38.42 | J235: 40.34
A236: Insumo | B236: 00004750 | C236: SINAPI | D236: PEDREIRO (HORISTA) | E236: Mão de Obra | G236: H | H236: 0.55 | I236: 13.45 | J236: 7.39
A237: Insumo | B237: 00006111 | C237: SINAPI | D237: SERVENTE DE OBRAS | E237: Mão de Obra | G237: H | H237: 0.45 | I237: 10.05 | J237: 4.52
A241: 7.3 | B241: Código | C241: Banco | D241: Descrição | E241: Tipo | G241: Und | H241: Quant. | I241: Valor Unit | J241: Total
A242: Composição | B242: 10175 | C242: ORSE | D242: Piso alta resistencia, branco, e=12mm, aplicado com juntas, polido até o esmeril 400 e encerado, exclusive argamassa de regualrização | E242: Pisos : Cimentados, em Concreto Simples, tipo Tech-Stone e de Alta Resistência | G242: m2 | H242: 1 | I242: 93.9 | J242: 93.9
A243: Insumo | B243: 4440 | C243: ORSE | D243: Piso alta resistencia, cor branca, e=12mm, aplicado com juntas, polido até o esmeril 400 e encerado | E243: Serviços | G243: m2 | H243: 1 | I243: 70 | J243: 70
A244: Insumo | B244: 00001380 | C244: SINAPI | D244: CIMENTO BRANCO | E244: Material | G244: KG | H244: 10 | I244: 2.39 | J244: 23.9
A248: 8.1 | B248: Código | C248: Banco | D248: Descrição | E248: Tipo | G248: Und | H248: Quant. | I248: Valor Unit | J248: Total
A249: Composição | B249: 93141 | C249: SINAPI | D249: PONTO DE TOMADA RESIDENCIAL INCLUINDO TOMADA 10A/250V, CAIXA ELÉTRICA, ELETRODUTO, CABO, RASGO, QUEBRA E CHUMBAMENTO. AF_01/2016 | E249: INEL - INSTALAÇÃO ELÉTRICA/ELETRIFICAÇÃO E ILUMINAÇÃO EXTERNA | G249: UN | H249: 1 | I249: 149.83 | J249: 149.83
A250: Composição Auxiliar | B250: 91937 | C250: SINAPI | D250: CAIXA OCTOGONAL 3" X 3", PVC, INSTALADA EM LAJE - FORNECIMENTO E INSTALAÇÃO. AF_12/2015 | E250: INEL - INSTALAÇÃO ELÉTRICA/ELETRIFICAÇÃO E ILUMINAÇÃO EXTERNA | G250: UN | H250: 0.375 | I250: 9.35 | J250: 3.5
A251: Composição Auxiliar | B251: 91852 | C251: SINAPI | D251: ELETRODUTO FLEXÍVEL CORRUGADO, PVC, DN 20 MM (1/2"), PARA CIRCUITOS TERMINAIS, INSTALADO EM PAREDE - FORNECIMENTO E INSTALAÇÃO. AF_12/2015 | E251: INEL - INSTALAÇÃO ELÉTRICA/ELETRIFICAÇÃO E ILUMINAÇÃO EXTERNA | G251: M | H251: 2.2 | I251: 7.35 | J251: 16.17
A252: Composição Auxiliar | B252: 91926 | C252: SINAPI | D252: CABO DE COBRE FLEXÍVEL ISOLADO, 2,5 MM², ANTI-CHAMA 450/750 V, PARA CIRCUITOS TERMINAIS - FORNECIMENTO E INSTALAÇÃO. AF_12/2015 | E252: INEL - INSTALAÇÃO ELÉTRICA/ELETRIFICAÇÃO E ILUMINAÇÃO EXTERNA | G252: M | H252: 12.6 | I252: 3.8 | J252: 47.88
A253: Composição Auxiliar | B253: 91996 | C253: SINAPI | D253: TOMADA MÉDIA DE EMBUTIR (1 MÓDULO), 2P+T 10 A, INCLUINDO SUPORTE E PLACA - FORNECIMENTO E INSTALAÇÃO. AF_12/2015 | E253: INEL - INSTALAÇÃO ELÉTRICA/ELETRIFICAÇÃO E ILUMINAÇÃO EXTERNA | G253: UN | H253: 1 | I253: 23.58 | J253: 23.58
A254: Composição Auxiliar | B254: 91940 | C254: SINAPI | D254: CAIXA RETANGULAR 4" X 2" MÉDIA (1,30 M DO PISO), PVC, INSTALADA EM PAREDE - FORNECIMENTO E INSTALAÇÃO. AF_12/2015 | E254: INEL - INSTALAÇÃO ELÉTRICA/ELETRIFICAÇÃO E ILUMINAÇÃO EXTERNA | G254: UN | H254: 1 | I254: 11.85 | J254: 11.85
A255: Composição Auxiliar | B255: 91842 | C255: SINAPI | D255: ELETRODUTO FLEXÍVEL CORRUGADO, PVC, DN 20 MM (1/2"), PARA CIRCUITOS TERMINAIS, INSTALADO EM LAJE - FORNECIMENTO E INSTALAÇÃO. AF_12/2015 | E255: INEL - INSTALAÇÃO ELÉTRICA/ELETRIFICAÇÃO E ILUMINAÇÃO EXTERNA | G255: M | H255: 2 | I255: 5.54 | J255: 11.08
A256: Composição Auxiliar | B256: 90447 | C256: SINAPI | D256: RASGO EM ALVENARIA PARA ELETRODUTOS COM DIAMETROS MENORES OU IGUAIS A 40 MM. AF_05/2015 | E256: INHI - INSTALAÇÕES HIDROS SANITÁRIAS | G256: M | H256: 2.2 | I256: 4.93 | J256: 10.84
A257: Composição Auxiliar | B257: 90456 | C257: SINAPI | D257: QUEBRA EM ALVENARIA PARA INSTALAÇÃO DE CAIXA DE TOMADA (4X4 OU 4X2). AF_05/2015 | E257: INHI - INSTALAÇÕES HIDROS SANITÁRIAS | G257: UN | H257: 1 | I257: 3.04 | J257: 3.04
A258: Composição Auxiliar | B258: 90466 | C258: SINAPI | D258: CHUMBAMENTO LINEAR EM ALVENARIA PARA RAMAIS/DISTRIBUIÇÃO COM DIÂMETROS MENORES OU IGUAIS A 40 MM. AF_05/2015 | E258: INHI - INSTALAÇÕES HIDROS SANITÁRIAS | G258: M | H258: 2.2 | I258: 9.95 | J258: 21.89
A262: 8.2 | B262: Código | C262: Banco | D262: Descrição | E262: Tipo | G262: Und | H262: Quant. | I262: Valor Unit | J262: Total
A263: Composição | B263: 93128 | C263: SINAPI | D263: PONTO DE ILUMINAÇÃO RESIDENCIAL INCLUINDO INTERRUPTOR SIMPLES, CAIXA ELÉTRICA, ELETRODUTO, CABO, RASGO, QUEBRA E CHUMBAMENTO (EXCLUINDO LUMINÁRIA E LÂMPADA). AF_01/2016 | E263: INEL - INSTALAÇÃO ELÉTRICA/ELETRIFICAÇÃO E ILUMINAÇÃO EXTERNA | G263: UN | H263: 1 | I263: 119.74 | J263: 119.74
A264: Composição Auxiliar | B264: 91937 | C264: SINAPI | D264: CAIXA OCTOGONAL 3" X 3", PVC, INSTALADA EM LAJE - FORNECIMENTO E INSTALAÇÃO. AF_12/2015 | E264: INEL - INSTALAÇÃO ELÉTRICA/ELETRIFICAÇÃO E ILUMINAÇÃO EXTERNA | G264: UN | H264: 0.375 | I264: 9.35 | J264: 3.5
A265: Composição Auxiliar | B265: 91852 | C265: SINAPI | D265: ELETRODUTO FLEXÍVEL CORRUGADO, PVC, DN 20 MM (1/2"), PARA CIRCUITOS TERMINAIS, INSTALADO EM PAREDE - FORNECIMENTO E INSTALAÇÃO. AF_12/2015 | E265: INEL - INSTALAÇÃO ELÉTRICA/ELETRIFICAÇÃO E ILUMINAÇÃO EXTERNA | G265: M | H265: 2.2 | I265: 7.35 | J265: 16.17
A266: Composição Auxiliar | B266: 91924 | C266: SINAPI | D266: CABO DE COBRE FLEXÍVEL ISOLADO, 1,5 MM², ANTI-CHAMA 450/750 V, PARA CIRCUITOS TERMINAIS - FORNECIMENTO E INSTALAÇÃO. AF_12/2015 | E266: INEL - INSTALAÇÃO ELÉTRICA/ELETRIFICAÇÃO E ILUMINAÇÃO EXTERNA | G266: M | H266: 8.4 | I266: 2.57 | J266: 21.58
A267: Composição Auxiliar | B267: 91940 | C267: SINAPI | D267: CAIXA RETANGULAR 4" X 2" MÉDIA (1,30 M DO PISO), PVC, INSTALADA EM PAREDE - FORNECIMENTO E INSTALAÇÃO. AF_12/2015 | E267: INEL - INSTALAÇÃO ELÉTRICA/ELETRIFICAÇÃO E ILUMINAÇÃO EXTERNA | G267: UN | H267: 1 | I267: 11.85 | J267: 11.85
A268: Composição Auxiliar | B268: 91842 | C268: SINAPI | D268: ELETRODUTO FLEXÍVEL CORRUGADO, PVC, DN 20 MM (1/2"), PARA CIRCUITOS TERMINAIS, INSTALADO EM LAJE - FORNECIMENTO E INSTALAÇÃO. AF_12/2015 | E268: INEL - INSTALAÇÃO ELÉTRICA/ELETRIFICAÇÃO E ILUMINAÇÃO EXTERNA | G268: M | H268: 2 | I268: 5.54 | J268: 11.08
A269: Composição Auxiliar | B269: 91953 | C269: SINAPI | D269: INTERRUPTOR SIMPLES (1 MÓDULO), 10A/250V, INCLUINDO SUPORTE E PLACA - FORNECIMENTO E INSTALAÇÃO. AF_12/2015 | E269: INEL - INSTALAÇÃO ELÉTRICA/ELETRIFICAÇÃO E ILUMINAÇÃO EXTERNA | G269: UN | H269: 1 | I269: 19.79 | J269: 19.79
A270: Composição Auxiliar | B270: 90447 | C270: SINAPI | D270: RASGO EM ALVENARIA PARA ELETRODUTOS COM DIAMETROS MENORES OU IGUAIS A 40 MM. AF_05/2015 | E270: INHI - INSTALAÇÕES HIDROS SANITÁRIAS | G270: M | H270: 2.2 | I270: 4.93 | J270: 10.84
A271: Composição Auxiliar | B271: 90456 | C271: SINAPI | D271: QUEBRA EM ALVENARIA PARA INSTALAÇÃO DE CAIXA DE TOMADA (4X4 OU 4X2). AF_05/2015 | E271: INHI - INSTALAÇÕES HIDROS SANITÁRIAS | G271: UN | H271: 1 | I271: 3.04 | J271: 3.04
A272: Composição Auxiliar | B272: 90466 | C272: SINAPI | D272: CHUMBAMENTO LINEAR EM ALVENARIA PARA RAMAIS/DISTRIBUIÇÃO COM DIÂMETROS MENORES OU IGUAIS A 40 MM. AF_05/2015 | E272: INHI - INSTALAÇÕES HIDROS SANITÁRIAS | G272: M | H272: 2.2 | I272: 9.95 | J272: 21.89
A276: 8.3 | B276: Código | C276: Banco | D276: Descrição | E276: Tipo | G276: Und | H276: Quant. | I276: Valor Unit | J276: Total
A277: Composição | B277: 101879 | C277: SINAPI | D277: QUADRO DE DISTRIBUIÇÃO DE ENERGIA EM CHAPA DE AÇO GALVANIZADO, DE EMBUTIR, COM BARRAMENTO TRIFÁSICO, PARA 24 DISJUNTORES DIN 100A - FORNECIMENTO E INSTALAÇÃO. AF_10/2020 | E277: INEL - INSTALAÇÃO ELÉTRICA/ELETRIFICAÇÃO E ILUMINAÇÃO EXTERNA | G277: UN | H277: 1 | I277: 752.44 | J277: 752.44
A278: Composição Auxiliar | B278: 87367 | C278: SINAPI | D278: ARGAMASSA TRAÇO 1:1:6 (EM VOLUME DE CIMENTO, CAL E AREIA MÉDIA ÚMIDA) PARA EMBOÇO/MASSA ÚNICA/ASSENTAMENTO DE ALVENARIA DE VEDAÇÃO, PREPARO MANUAL. AF_08/2019 | E278: SEDI - SERVIÇOS DIVERSOS | G278: m³ | H278: 0.0144 | I278: 597.01 | J278: 8.59
... 25 more rows

Sheet Cronograma Físico-financeiro
A4: CRONOGRAMA FISICO-FINANCEIRO
A6: ITEM | B6: DESCRIÇÃO | C6: PREÇO TOTAL | D6: 1.º PERÍODO | F6: 2.º PERÍODO | H6: 3.º PERÍODO | J6: 4.º PERÍODO | L6: TOTAL
D7: PERCENTUAL | E7: FINANCEIRO | F7: PERCENTUAL | G7: FINANCEIRO | H7: PERCENTUAL | I7: FINANCEIRO | J7: PERCENTUAL | K7: FINANCEIRO | L7: PERCENTUAL
A9: 1 | B9: CANTEIRO DE OBRA | C9: ='Resumo do Orçamento'!J5 -> 11482.02 | D9: 0.15 | E9: =ROUND(D9*$C9,2) -> 1722.3 | F9: 0.3 | G9: =ROUND(F9*$C9,2) -> 3444.61 | H9: 0.4 | I9: =ROUND(H9*$C9,2) -> 4592.81 | J9: 0.15 | K9: =ROUND(J9*$C9,2) -> 1722.3 | L9: =D9+F9+H9+J9 -> 1
A10: 2 | B10: SERVIÇOS PRELIMINARES | C10: ='Resumo do Orçamento'!J6 -> 3336.46 | D10: 1 | E10: 3336.46 | F10: 0 | G10: 0 | H10: 0 | I10: 0 | J10: 0 | K10: 0 | L10: =D10+F10+H10+J10 -> 1
A11: 3 | B11: ALVENARIAS | C11: ='Resumo do Orçamento'!J7 -> 14082.17 | D11: 1 | E11: 14082.17 | F11: 0 | G11: 0 | H11: 0 | I11: 0 | J11: 0 | K11: 0 | L11: 1
A12: 4 | B12: COBERTURA | C12: ='Resumo do Orçamento'!J8 -> 41463.91 | D12: 0 | E12: 0 | F12: 0.25 | G12: 10365.98 | H12: 0.75 | I12: 31097.93 | J12: 0 | K12: 0 | L12: 1
A13: 5 | B13: ESQUADRIAS | C13: ='Resumo do Orçamento'!J9 -> 4475.61 | D13: 0 | E13: 0 | F13: 1 | G13: 4475.61 | H13: 0 | I13: 0 | J13: 0 | K13: 0 | L13: 1
A14: 6 | B14: INSTALAÇÕES HIDRÁULICAS | C14: ='Resumo do Orçamento'!J10 -> 847.43 | D14: 1 | E14: 847.43 | F14: 0 | G14: 0 | H14: 0 | I14: 0 | J14: 0 | K14: 0 | L14: 1
A15: 7 | B15: REVESTIMENTOS | C15: ='Resumo do Orçamento'!J11 -> 32230.26 | D15: 0 | E15: 0 | F15: 0.5 | G15: 16115.13 | H15: 0.5 | I15: 16115.13 | J15: 0 | K15: 0 | L15: 1
A16: 8 | B16: INSTALAÇÕES ELÉTRICAS | C16: ='Resumo do Orçamento'!J12 -> 5762.7 | D16: 0 | E16: 0 | F16: 1 | G16: 5762.7 | H16: 0 | I16: 0 | J16: 0 | K16: 0 | L16: 1
A17: 9 | B17: PINTURAS | C17: ='Resumo do Orçamento'!J13 -> 11539.78 | D17: 0 | E17: 0 | F17: 0 | G17: 0 | H17: 0 | I17: 0 | J17: 1 | K17: 11539.78 | L17: 1
C18: =SUM(C8:C17) -> 125220.34 | D18: =E18/$C$18 -> 0.1596255049 | E18: =SUM(E8:E17) -> 19988.36 | F18: =G18/$C$18 -> 0.3207468531 | G18: =SUM(G8:G17) -> 40164.03 | H18: =I18/$C$18 -> 0.4137176916 | I18: =SUM(I8:I17) -> 51805.87 | J18: =K18/$C$18 -> 0.1059099504 | K18: =SUM(K8:K17) -> 13262.08
D19: =D18 -> 0.1596255049 | E19: =E18 -> 19988.36 | F19: =D19+F18 -> 0.480372358 | G19: =E19+G18 -> 60152.39 | H19: =F19+H18 -> 0.8940900496 | I19: =G19+I18 -> 111958.26 | J19: =H19+J18 -> 1 | K19: =I19+K18 -> 125220.34
H22: 120
H23: =4*30 -> 120
H24: =H23+30+15+90 -> 255

Sheet BDI
A4: DOCUMENTO: DETALHAMENTO DA BONIFICAÇÃO E DESPESAS INDIRETAS
A6: FÓRMULA APLICADA
A8: BDI = { [ ( 1 + AC / 100 + R / 100 + SG/100 ) . ( 1 + DF / 100 ) . ( 1 + L / 100 ) / ( 1 - I / 100 ) ] - 1 } . 100
A10: ONDE:
A11: BDI = | B11: Bonificação e Despesas Indiretas
A12: AC = | B12: Administração Central
A13: SG= | B13: Seguros e garantias
A14: DF = | B14: Despesas Financeiras
A15: R = | B15: Riscos
A16: L = | B16: Lucro
A17: I = | B17: Impostos
A20: EXECUÇÃO DE SERVIÇOS
A22: ITEM | B22: DESCRIÇÃO | C22: PERCENTUAIS (%)
A23: 1 | B23: Administração Central | C23: 4
A24: 2 | B24: Seguros e garantias | C24: 0.8
A25: 3 | B25: Riscos | C25: 1.27
A26: 4 | B26: Despesas Financeiras | C26: 1.23
A27: 5 | B27: Lucro | C27: 7.4
A28: 6 | B28: Impostos | C28: =SUM(C29:C32) -> 11.15
A29: 6.1 | B29: PIS | C29: 0.65
A30: 6.2 | B30: COFINS | C30: 3
A31: 6.3 | B31: ISS | C31: 3
A32: 6.4 | B32: IPRB | C32: 4.5
A33: BDI | C33: =ROUND((((1+C23/100+C24/100+C25/100)*(1+C26/100)*(1+C27/100))/(1-C28/100))-1,4) -> 0.2979

Sheet ENCARGOS SOCIAIS
A6: ENCARGOS SOCIAIS SOBRE A MÃO DE OBRA
A7: CÓDIGO | B7: DESCRIÇÃO | C7: COM DESONERAÇÃO | E7: SEM DESONERAÇÃO
C8: HORISTA % | D8: MENSALISTA % | E8: HORISTA % | F8: MENSALISTA %
A10: GRUPO A
A11: A1 | B11: INSS | C11: 0 | D11: 0 | E11: 20 | F11: 20
A12: A2 | B12: SESI | C12: 1.5 | D12: 1.5 | E12: 1.5 | F12: 1.5
A13: A3 | B13: SENAI | C13: 1 | D13: 1 | E13: 1 | F13: 1
A14: A4 | B14: INCRA | C14: 0.2 | D14: 0.2 | E14: 0.2 | F14: 0.2
A15: A5 | B15: SEBRAE | C15: 0.6 | D15: 0.6 | E15: 0.6 | F15: 0.6
A16: A6 | B16: Salário Educação | C16: 2.5 | D16: 2.5 | E16: 2.5 | F16: 2.5
A17: A7 | B17: Seguro Contra Acidentes de Trabalho | C17: 3 | D17: 3 | E17: 3 | F17: 3
A18: A8 | B18: FGTS | C18: 8 | D18: 8 | E18: 8 | F18: 8
A19: A9 | B19: SECONCI | C19: 0 | D19: 0 | E19: 0 | F19: 0
A20: A | B20: Total | C20: =SUM(C11:C19) -> 16.8 | D20: =SUM(D11:D19) -> 16.8 | E20: =SUM(E11:E19) -> 36.8 | F20: =SUM(F11:F19) -> 36.8
A22: GRUPO B
A23: B1 | B23: Repouso Semanal Remunerado | C23: 17.86 | D23: - | E23: 17.86 | F23: -
A24: B2 | B24: Feriados | C24: 3.93 | D24: - | E24: 3.93 | F24: -
A25: B3 | B25: Auxílio-enfermidade | C25: 0.85 | D25: 0.66 | E25: 0.85 | F25: 0.66
A26: B4 | B26: 13° salário | C26: 10.82 | D26: 8.33 | E26: 10.82 | F26: 8.33
A27: B5 | B27: Licença-paternidade | C27: 0.07 | D27: 0.06 | E27: 0.07 | F27: 0.06
A28: B6 | B28: Faltas Justificadas | C28: 0.72 | D28: 0.56 | E28: 0.72 | F28: 0.56
A29: B7 | B29: Dias de chuva | C29: 1.45 | D29: - | E29: 1.45 | F29: 0
A30: B8 | B30: Auxílio Acidente de Trabalho | C30: 0.1 | D30: 0.08 | E30: 0.1 | F30: 0.08
A31: B9 | B31: Férias Gozadas | C31: 9.01 | D31: 6.94 | E31: 9.01 | F31: 6.94
A32: B10 | B32: Salário Maternidade | C32: 0.03 | D32: 0.02 | E32: 0.03 | F32: 0.02
A33: B | B33: Total | C33: =SUM(C23:C32) -> 44.84 | D33: =SUM(D23:D32) -> 16.65 | E33: =SUM(E23:E32) -> 44.84 | F33: =SUM(F23:F32) -> 16.65
A35: GRUPO C
A36: C1 | B36: Aviso Prévio Indenizado | C36: 4.76 | D36: 3.67 | E36: 4.76 | F36: 3.67
A37: C2 | B37: Aviso Prévio Trabalhado | C37: 0.11 | D37: 0.09 | E37: 0.11 | F37: 0.09
A38: C3 | B38: Férias Indenizadas | C38: 4.35 | D38: 3.35 | E38: 4.35 | F38: 3.35
A39: C4 | B39: Depósito Rescisão Sem Justa Causa | C39: 3.33 | D39: 2.56 | E39: 3.33 | F39: 2.56
A40: C5 | B40: Indenização Adicional | C40: 0.4 | D40: 0.31 | E40: 0.4 | F40: 0.31
A41: C | B41: Total | C41: =SUM(C36:C40) -> 12.95 | D41: =SUM(D36:D40) -> 9.98 | E41: =SUM(E36:E40) -> 12.95 | F41: =SUM(F36:F40) -> 9.98
A43: GRUPO D
A44: D1 | B44: Reincidência de A sobre B | C44: 7.53 | D44: 2.8 | E44: 16.5 | F44: 6.13
A45: D2 | B45: Reincidência de Grupo A sobre Aviso Prévio Trabalhado e Reincidência do FGTS sobre Aviso Prévio Indenizado | C45: 0.4 | D45: 0.31 | E45: 0.42 | F45: 0.33
A46: D | B46: Total | C46: =SUM(C44:C45) -> 7.93 | D46: =SUM(D44:D45) -> 3.11 | E46: =SUM(E44:E45) -> 16.92 | F46: =SUM(F44:F45) -> 6.46
A48: T O T A L (%) | C48: =C20+C33+C41+C46 -> 82.52 | D48: =D20+D33+D41+D46 -> 46.54 | E48: =E20+E33+E41+E46 -> 111.51 | F48: =F20+F33+F41+F46 -> 69.89
